[Event "Late-Titled-Tuesday-Blitz-October-24-2023"]
[Site "Chess.com"]
[Date "2023.10.24"]
[Round "8"]
[White "effefe"]
[Black "Roedor"]
[Result "1/2-1/2"]
[WhiteElo "2342"]
[BlackElo "2435"]
[TimeControl "180+1"]
[EndTime "15:28:48 PDT"]
[Termination "Game drawn by repetition"]

1. d4 {[%clk 0:03:00.9]} 1... Nf6 {[%clk 0:02:57.5]} 2. c4 {[%clk 0:02:59.6]}
2... g6 {[%clk 0:02:56.2]} 3. Nc3 {[%clk 0:02:56.5]} 3... d5 {[%clk 0:02:56.3]}
4. cxd5 {[%clk 0:02:55.6]} 4... Nxd5 {[%clk 0:02:57.2]} 5. e4 {[%clk 0:02:53.3]}
5... Nxc3 {[%clk 0:02:57.4]} 6. bxc3 {[%clk 0:02:54.2]} 6... Bg7 {[%clk
0:02:57.9]} 7. Bc4 {[%clk 0:02:53.3]} 7... c5 {[%clk 0:02:58]} 8. Ne2 {[%clk
0:02:53.6]} 8... O-O {[%clk 0:02:58.1]} 9. Be3 {[%clk 0:02:52.1]} 9... Nc6
{[%clk 0:02:58.4]} 10. O-O {[%clk 0:02:51.6]} 10... b6 {[%clk 0:02:58.9]} 11.
Rc1 {[%clk 0:02:47.5]} 11... Qc7 {[%clk 0:02:59.1]} 12. Qd2 {[%clk 0:02:46.2]}
12... Bb7 {[%clk 0:02:58.5]} 13. Bf4 {[%clk 0:02:28.4]} 13... e5 {[%clk
0:02:57.1]} 14. Bg3 {[%clk 0:02:26.4]} 14... Na5 {[%clk 0:02:51.2]} 15. Bd3
{[%clk 0:02:24.8]} 15... Rad8 {[%clk 0:02:49.2]} 16. h4 {[%clk 0:02:02]} 16...
Qe7 {[%clk 0:02:45.3]} 17. h5 {[%clk 0:01:57.4]} 17... exd4 {[%clk 0:02:35.1]}
18. h6 {[%clk 0:01:45.7]} 18... dxc3 {[%clk 0:02:23.3]} 19. Nxc3 {[%clk
0:01:24.9]} 19... Be5 {[%clk 0:02:23]} 20. Bxe5 {[%clk 0:01:13.3]} 20... Qxe5
{[%clk 0:02:23.9]} 21. Qe3 {[%clk 0:01:09.2]} 21... f5 {[%clk 0:02:16.2]} 22.
Bb1 {[%clk 0:00:43.8]} 22... Nc4 {[%clk 0:02:04.7]} 23. Qe2 {[%clk 0:00:37.5]}
23... Nd2 {[%clk 0:02:03.4]} 24. Bc2 {[%clk 0:00:27.6]} 24... fxe4 {[%clk
0:01:58.6]} 25. Rfd1 {[%clk 0:00:20.4]} 25... Qg5 {[%clk 0:00:55.8]} 26. Nxe4
{[%clk 0:00:19.1]} 26... Nxe4 {[%clk 0:00:52.1]} 27. Bxe4 {[%clk 0:00:20]} 27...
Bxe4 {[%clk 0:00:49.9]} 28. Qxe4 {[%clk 0:00:19.5]} 28... Rd4 {[%clk 0:00:47.1]}
29. Qe6+ {[%clk 0:00:16.6]} 29... Kh8 {[%clk 0:00:44.2]} 30. Re1 {[%clk
0:00:05.3]} 30... Qxh6 {[%clk 0:00:35.7]} 31. Rc2 {[%clk 0:00:05.4]} 31... Qg7
{[%clk 0:00:34.7]} 32. Rce2 {[%clk 0:00:05.6]} 32... Rdf4 {[%clk 0:00:34.3]} 33.
f3 {[%clk 0:00:05.3]} 33... R4f7 {[%clk 0:00:33.7]} 34. Qe3 {[%clk 0:00:05.6]}
34... Qd4 {[%clk 0:00:33.6]} 35. Qxd4+ {[%clk 0:00:05.6]} 35... cxd4 {[%clk
0:00:34.5]} 36. Rd2 {[%clk 0:00:06]} 36... Rd7 {[%clk 0:00:34.8]} 37. Red1
{[%clk 0:00:06.5]} 37... Rfd8 {[%clk 0:00:35.1]} 38. Kf2 {[%clk 0:00:07]} 38...
Kg7 {[%clk 0:00:35.4]} 39. Ke2 {[%clk 0:00:07.4]} 39... Kf6 {[%clk 0:00:36]} 40.
Kd3 {[%clk 0:00:08]} 40... Ke5 {[%clk 0:00:35.9]} 41. Re1+ {[%clk 0:00:08.4]}
41... Kd5 {[%clk 0:00:36.1]} 42. Re4 {[%clk 0:00:09.1]} 42... Kc5 {[%clk
0:00:33.8]} 43. Rc2+ {[%clk 0:00:09.3]} 43... Kb5 {[%clk 0:00:34]} 44. Re5+
{[%clk 0:00:08.7]} 44... Ka6 {[%clk 0:00:33.8]} 45. Rc4 {[%clk 0:00:07.9]} 45...
b5 {[%clk 0:00:30.4]} 46. Rc6+ {[%clk 0:00:06.4]} 46... Kb7 {[%clk 0:00:28.2]}
47. Rf6 {[%clk 0:00:02.6]} 47... a6 {[%clk 0:00:26.6]} 48. Ree6 {[%clk
0:00:03.2]} 48... Rc7 {[%clk 0:00:16]} 49. Rb6+ {[%clk 0:00:03.6]} 49... Kc8
{[%clk 0:00:16.3]} 50. Rxa6 {[%clk 0:00:03.9]} 50... Rc3+ {[%clk 0:00:16.3]} 51.
Kd2 {[%clk 0:00:04.6]} 51... Rc7 {[%clk 0:00:14.1]} 52. Rfb6 {[%clk 0:00:04.6]}
52... d3 {[%clk 0:00:13.9]} 53. Rxb5 {[%clk 0:00:04.9]} 53... Rc2+ {[%clk
0:00:13.7]} 54. Kd1 {[%clk 0:00:05.6]} 54... Rxg2 {[%clk 0:00:14.3]} 55. Rc6+
{[%clk 0:00:04.1]} 55... Kd7 {[%clk 0:00:14.3]} 56. Rd5+ {[%clk 0:00:03.3]}
56... Kxc6 {[%clk 0:00:14.5]} 57. Rxd8 {[%clk 0:00:04]} 57... Rxa2 {[%clk
0:00:13.6]} 58. Rxd3 {[%clk 0:00:04.6]} 58... Rh2 {[%clk 0:00:12.5]} 59. Ke1
{[%clk 0:00:05]} 59... g5 {[%clk 0:00:11.4]} 60. Kf1 {[%clk 0:00:05.6]} 60... h6
{[%clk 0:00:11.2]} 61. Kg1 {[%clk 0:00:05.7]} 61... Rh4 {[%clk 0:00:11.8]} 62.
Kg2 {[%clk 0:00:05.5]} 62... Kc5 {[%clk 0:00:12.2]} 63. Kg3 {[%clk 0:00:05.9]}
63... Kc4 {[%clk 0:00:12.8]} 64. Rd6 {[%clk 0:00:06.2]} 64... Kc5 {[%clk
0:00:12.1]} 65. Rd8 {[%clk 0:00:06.8]} 65... Rf4 {[%clk 0:00:09.4]} 66. Rd1
{[%clk 0:00:06.4]} 66... Rf6 {[%clk 0:00:08.8]} 67. Rd2 {[%clk 0:00:05.4]} 67...
Kc6 {[%clk 0:00:08.9]} 68. Rd8 {[%clk 0:00:05.7]} 68... Rd6 {[%clk 0:00:06.6]}
69. Rh8 {[%clk 0:00:05.3]} 69... Kd5 {[%clk 0:00:06]} 70. Kg4 {[%clk 0:00:05.2]}
70... Ke5 {[%clk 0:00:06.4]} 71. Re8+ {[%clk 0:00:05.2]} 71... Kf6 {[%clk
0:00:05.8]} 72. Rf8+ {[%clk 0:00:05.4]} 72... Kg7 {[%clk 0:00:05.9]} 73. Rb8
{[%clk 0:00:05.4]} 73... Rd4+ {[%clk 0:00:06.1]} 74. Kg3 {[%clk 0:00:05.5]}
74... Kg6 {[%clk 0:00:06.4]} 75. Rb6+ {[%clk 0:00:05.5]} 75... Kh5 {[%clk
0:00:06.9]} 76. Rb5 {[%clk 0:00:05.7]} 76... Rd1 {[%clk 0:00:06.9]} 77. Rc5
{[%clk 0:00:05.6]} 77... Rg1+ {[%clk 0:00:07]} 78. Kh2 {[%clk 0:00:05.8]} 78...
Rf1 {[%clk 0:00:07.5]} 79. Kg3 {[%clk 0:00:06.4]} 79... Ra1 {[%clk 0:00:08.4]}
80. Rb5 {[%clk 0:00:06.3]} 80... Ra2 {[%clk 0:00:08.6]} 81. Rc5 {[%clk
0:00:06.7]} 81... Ra4 {[%clk 0:00:08.9]} 82. Rb5 {[%clk 0:00:07.1]} 82... Ra3
{[%clk 0:00:09.3]} 83. Rc5 {[%clk 0:00:07.5]} 83... Kg6 {[%clk 0:00:09.7]} 84.
Rc6+ {[%clk 0:00:07.9]} 84... Kf5 {[%clk 0:00:09.8]} 85. Rc5+ {[%clk 0:00:08.5]}
85... Kf6 {[%clk 0:00:10]} 86. Rc6+ {[%clk 0:00:09.1]} 86... Ke5 {[%clk
0:00:10.6]} 87. Rxh6 {[%clk 0:00:08.6]} 87... Kf5 {[%clk 0:00:10.9]} 88. Rb6
{[%clk 0:00:07.9]} 88... g4 {[%clk 0:00:10.5]} 89. Rb5+ {[%clk 0:00:08.4]} 89...
Kf6 {[%clk 0:00:10.2]} 90. Kxg4 {[%clk 0:00:08.8]} 90... Ra6 {[%clk 0:00:09.6]}
91. f4 {[%clk 0:00:09.2]} 91... Kg7 {[%clk 0:00:09.2]} 92. Kg5 {[%clk
0:00:08.4]} 92... Kf7 {[%clk 0:00:09.6]} 93. f5 {[%clk 0:00:08.6]} 93... Kg7
{[%clk 0:00:05.6]} 94. Rb7+ {[%clk 0:00:09]} 94... Kf8 {[%clk 0:00:05.6]} 95. f6
{[%clk 0:00:08.9]} 95... Ra1 {[%clk 0:00:05.8]} 96. Kg6 {[%clk 0:00:09.5]} 96...
Rg1+ {[%clk 0:00:05.7]} 97. Kf5 {[%clk 0:00:10.3]} 97... Rf1+ {[%clk 0:00:06.1]}
98. Ke6 {[%clk 0:00:10.7]} 98... Re1+ {[%clk 0:00:06.5]} 99. Kd6 {[%clk
0:00:11.3]} 99... Rd1+ {[%clk 0:00:07]} 100. Ke5 {[%clk 0:00:11.9]} 100... Re1+
{[%clk 0:00:07.3]} 101. Kf5 {[%clk 0:00:12.6]} 101... Rf1+ {[%clk 0:00:07.8]}
102. Kg6 {[%clk 0:00:13.5]} 102... Rg1+ {[%clk 0:00:08.2]} 103. Kh7 {[%clk
0:00:14.2]} 103... Rh1+ {[%clk 0:00:08.5]} 104. Kg6 {[%clk 0:00:14]} 104... Rg1+
{[%clk 0:00:08.9]} 1/2-1/2

[Event "Late-Titled-Tuesday-Blitz-October-24-2023"]
[Site "Chess.com"]
[Date "2023.10.24"]
[Round "8"]
[White "ContrVersia"]
[Black "KATPAH"]
[Result "1-0"]
[WhiteElo "2867"]
[BlackElo "2643"]
[TimeControl "180+1"]
[EndTime "15:30:01 PDT"]
[Termination "ContrVersia won by checkmate"]

1. Nf3 {[%clk 0:03:00.9]} 1... Nf6 {[%clk 0:02:59.9]} 2. c4 {[%clk 0:03:00.9]}
2... g6 {[%clk 0:03:00]} 3. g3 {[%clk 0:03:01.3]} 3... Bg7 {[%clk 0:03:00.6]} 4.
Bg2 {[%clk 0:03:01.9]} 4... O-O {[%clk 0:03:01.1]} 5. O-O {[%clk 0:03:02.5]}
5... d5 {[%clk 0:03:01.6]} 6. cxd5 {[%clk 0:03:02.6]} 6... Nxd5 {[%clk
0:03:02.5]} 7. d4 {[%clk 0:03:03]} 7... c6 {[%clk 0:02:57.9]} 8. e4 {[%clk
0:03:02.7]} 8... Nc7 {[%clk 0:02:58.3]} 9. h3 {[%clk 0:03:02.5]} 9... Ne6 {[%clk
0:02:54.9]} 10. d5 {[%clk 0:02:51.4]} 10... Nc7 {[%clk 0:02:50.4]} 11. Nc3
{[%clk 0:02:27.9]} 11... cxd5 {[%clk 0:02:41.6]} 12. exd5 {[%clk 0:02:27.5]}
12... Bxc3 {[%clk 0:02:37.1]} 13. bxc3 {[%clk 0:02:27.4]} 13... Nxd5 {[%clk
0:02:35.8]} 14. c4 {[%clk 0:02:27.3]} 14... Nf6 {[%clk 0:02:34.8]} 15. Qe2
{[%clk 0:02:25.9]} 15... Nc6 {[%clk 0:02:34.2]} 16. Bb2 {[%clk 0:02:25.7]} 16...
Bf5 {[%clk 0:02:33.9]} 17. Rad1 {[%clk 0:02:22.8]} 17... Qa5 {[%clk 0:02:33]}
18. Ne5 {[%clk 0:02:16.8]} 18... Nxe5 {[%clk 0:02:22.3]} 19. Bxe5 {[%clk
0:02:17.7]} 19... Rad8 {[%clk 0:02:20.7]} 20. g4 {[%clk 0:02:14.7]} 20... Be6
{[%clk 0:02:17.1]} 21. Ba1 {[%clk 0:01:43.5]} 21... Qa6 {[%clk 0:02:07]} 22. g5
{[%clk 0:01:34]} 22... Bxc4 {[%clk 0:01:59.7]} 23. Qb2 {[%clk 0:01:34]} 23...
Bxf1 {[%clk 0:01:58.4]} 24. Rxf1 {[%clk 0:01:34.2]} 24... Qb6 {[%clk 0:01:41.2]}
25. gxf6 {[%clk 0:01:33.1]} 25... Qxb2 {[%clk 0:01:40.9]} 26. Bxb2 {[%clk
0:01:33]} 26... exf6 {[%clk 0:01:36.9]} 27. Bxf6 {[%clk 0:01:33.9]} 27... Rd2
{[%clk 0:01:35.2]} 28. a3 {[%clk 0:01:27.9]} 28... Rd3 {[%clk 0:01:30]} 29. Rc1
{[%clk 0:01:26.9]} 29... Rxa3 {[%clk 0:01:27.7]} 30. Be7 {[%clk 0:01:25.7]}
30... Rb3 {[%clk 0:01:26.4]} 31. Bxf8 {[%clk 0:01:25.4]} 31... Kxf8 {[%clk
0:01:27.3]} 32. Rc8+ {[%clk 0:01:25.2]} 32... Kg7 {[%clk 0:01:25.1]} 33. Rc7
{[%clk 0:01:26.1]} 33... Rb1+ {[%clk 0:01:25.2]} 34. Kh2 {[%clk 0:01:26]} 34...
a5 {[%clk 0:01:24.6]} 35. Bxb7 {[%clk 0:01:23.5]} 35... Rb2 {[%clk 0:01:22.7]}
36. Kg2 {[%clk 0:01:23.3]} 36... Rb5 {[%clk 0:01:20.8]} 37. Ba6 {[%clk
0:01:21.4]} 37... Rf5 {[%clk 0:01:16.5]} 38. Bc4 {[%clk 0:01:18.7]} 38... h5
{[%clk 0:01:15.1]} 39. Ra7 {[%clk 0:01:17.9]} 39... Kg8 {[%clk 0:01:13.6]} 40.
Kg3 {[%clk 0:01:03.7]} 40... Kg7 {[%clk 0:01:13.4]} 41. Be6 {[%clk 0:01:03.7]}
41... Rf6 {[%clk 0:01:11.2]} 42. Bd7 {[%clk 0:00:57.4]} 42... Rd6 {[%clk
0:00:44.7]} 43. Be8 {[%clk 0:00:55.9]} 43... Rf6 {[%clk 0:00:42.8]} 44. Rxa5
{[%clk 0:00:55]} 44... Kf8 {[%clk 0:00:42.8]} 45. Bd7 {[%clk 0:00:53.2]} 45...
Kg7 {[%clk 0:00:42.9]} 46. Ra7 {[%clk 0:00:53]} 46... Rd6 {[%clk 0:00:40.7]} 47.
Be8 {[%clk 0:00:52.2]} 47... Rf6 {[%clk 0:00:40.7]} 48. Bb5 {[%clk 0:00:48.2]}
48... Rf5 {[%clk 0:00:39.7]} 49. Bc4 {[%clk 0:00:48.2]} 49... Rf6 {[%clk
0:00:39.3]} 50. f4 {[%clk 0:00:45.6]} 50... Rf5 {[%clk 0:00:38.2]} 51. h4 {[%clk
0:00:40.9]} 51... Rf6 {[%clk 0:00:37]} 52. Kf3 {[%clk 0:00:41]} 52... Kg8 {[%clk
0:00:35]} 53. Ke4 {[%clk 0:00:41.1]} 53... Kg7 {[%clk 0:00:35.2]} 54. Bd5 {[%clk
0:00:31.2]} 54... Kg8 {[%clk 0:00:32.4]} 55. Rc7 {[%clk 0:00:19.6]} 55... Kg7
{[%clk 0:00:32.3]} 56. Rc6 {[%clk 0:00:19.7]} 56... Rf5 {[%clk 0:00:27.9]} 57.
Rd6 {[%clk 0:00:19.2]} 57... Kf8 {[%clk 0:00:24.8]} 58. Rd8+ {[%clk 0:00:18.3]}
58... Kg7 {[%clk 0:00:24.8]} 59. Re8 {[%clk 0:00:17.8]} 59... Rf6 {[%clk
0:00:24.4]} 60. Re5 {[%clk 0:00:17.9]} 60... Ra6 {[%clk 0:00:23.5]} 61. Re7
{[%clk 0:00:16.9]} 61... Rf6 {[%clk 0:00:24]} 62. Ke3 {[%clk 0:00:15.7]} 62...
Rf5 {[%clk 0:00:23.2]} 63. Be4 {[%clk 0:00:14.6]} 63... Rf6 {[%clk 0:00:23.1]}
64. Rd7 {[%clk 0:00:14.6]} 64... Re6 {[%clk 0:00:22.6]} 65. Kf3 {[%clk
0:00:14.8]} 65... Rf6 {[%clk 0:00:20.9]} 66. Bd3 {[%clk 0:00:14.9]} 66... Kg8
{[%clk 0:00:19.9]} 67. Bc4 {[%clk 0:00:13.9]} 67... Kg7 {[%clk 0:00:20.1]} 68.
Rd5 {[%clk 0:00:13.8]} 68... Rc6 {[%clk 0:00:19.3]} 69. Rd4 {[%clk 0:00:14.2]}
69... Rf6 {[%clk 0:00:19.3]} 70. Ke4 {[%clk 0:00:13.9]} 70... Rb6 {[%clk
0:00:18]} 71. f5 {[%clk 0:00:12.9]} 71... gxf5+ {[%clk 0:00:16.7]} 72. Kxf5
{[%clk 0:00:13.8]} 72... Rf6+ {[%clk 0:00:17]} 73. Kg5 {[%clk 0:00:13.8]} 73...
Rh6 {[%clk 0:00:11.8]} 74. Rd7 {[%clk 0:00:13.3]} 74... Rf6 {[%clk 0:00:10.9]}
75. Kxh5 {[%clk 0:00:11.9]} 75... Rf4 {[%clk 0:00:11.2]} 76. Bd5 {[%clk
0:00:10.7]} 76... Rf2 {[%clk 0:00:09.7]} 77. Kg4 {[%clk 0:00:10.3]} 77... Kg6
{[%clk 0:00:08.4]} 78. Rd6+ {[%clk 0:00:09.8]} 78... Kg7 {[%clk 0:00:07.3]} 79.
Be4 {[%clk 0:00:09.5]} 79... Re2 {[%clk 0:00:05.1]} 80. Bd3 {[%clk 0:00:08.4]}
80... Rg2+ {[%clk 0:00:05.4]} 81. Kf3 {[%clk 0:00:09]} 81... Rh2 {[%clk
0:00:05.8]} 82. Kg3 {[%clk 0:00:09.6]} 82... Rh1 {[%clk 0:00:06.4]} 83. Be4
{[%clk 0:00:09.7]} 83... Rg1+ {[%clk 0:00:06.4]} 84. Bg2 {[%clk 0:00:10.4]}
84... f6 {[%clk 0:00:05.3]} 85. Rd7+ {[%clk 0:00:10]} 85... Kg6 {[%clk
0:00:05.1]} 86. Kf2 {[%clk 0:00:09.6]} 86... Ra1 {[%clk 0:00:04.9]} 87. Bf3
{[%clk 0:00:10]} 87... Ra2+ {[%clk 0:00:04.9]} 88. Kg3 {[%clk 0:00:10.1]} 88...
Ra4 {[%clk 0:00:05.1]} 89. Rd8 {[%clk 0:00:09]} 89... f5 {[%clk 0:00:04.5]} 90.
Rd6+ {[%clk 0:00:08.7]} 90... Kg7 {[%clk 0:00:04.8]} 91. h5 {[%clk 0:00:08.3]}
91... Kh7 {[%clk 0:00:04.1]} 92. Rf6 {[%clk 0:00:07.5]} 92... Ra5 {[%clk
0:00:04.2]} 93. Kh4 {[%clk 0:00:07.1]} 93... Kg7 {[%clk 0:00:04.6]} 94. Rg6+
{[%clk 0:00:07]} 94... Kh7 {[%clk 0:00:04.6]} 95. Kg5 {[%clk 0:00:07.6]} 95...
Rb5 {[%clk 0:00:04]} 96. Bc6 {[%clk 0:00:06.6]} 96... Rc5 {[%clk 0:00:03.9]} 97.
Rh6+ {[%clk 0:00:06.5]} 97... Kg7 {[%clk 0:00:03.9]} 98. Rg6+ {[%clk 0:00:07.4]}
98... Kh7 {[%clk 0:00:04.5]} 99. Bf3 {[%clk 0:00:06.7]} 99... Ra5 {[%clk
0:00:03.8]} 100. Kf4 {[%clk 0:00:07]} 100... Ra3 {[%clk 0:00:02.9]} 101. Rf6
{[%clk 0:00:06.3]} 101... Ra4+ {[%clk 0:00:02.8]} 102. Kxf5 {[%clk 0:00:05.8]}
102... Ra5+ {[%clk 0:00:03]} 103. Kg4 {[%clk 0:00:06]} 103... Ra4+ {[%clk
0:00:03.6]} 104. Kg3 {[%clk 0:00:06]} 104... Ra5 {[%clk 0:00:03]} 105. Be4+
{[%clk 0:00:05.2]} 105... Kg7 {[%clk 0:00:03.1]} 106. Rg6+ {[%clk 0:00:05.8]}
106... Kf7 {[%clk 0:00:03.7]} 107. Kg4 {[%clk 0:00:06.2]} 107... Ra4 {[%clk
0:00:03.8]} 108. Kf4 {[%clk 0:00:06.3]} 108... Ra1 {[%clk 0:00:03.7]} 109. Rb6
{[%clk 0:00:05.3]} 109... Rf1+ {[%clk 0:00:04]} 110. Kg5 {[%clk 0:00:05.5]}
110... Kg7 {[%clk 0:00:04.7]} 111. Rb7+ {[%clk 0:00:04.9]} 111... Kg8 {[%clk
0:00:04.4]} 112. Bd5+ {[%clk 0:00:04]} 112... Kh8 {[%clk 0:00:03.8]} 113. Be4
{[%clk 0:00:03.7]} 113... Kg8 {[%clk 0:00:03.7]} 114. h6 {[%clk 0:00:03.6]}
114... Rg1+ {[%clk 0:00:04.3]} 115. Kf6 {[%clk 0:00:03.6]} 115... Rf1+ {[%clk
0:00:04.7]} 116. Bf5 {[%clk 0:00:04.1]} 116... Kf8 {[%clk 0:00:03.9]} 117. Rb8#
{[%clk 0:00:03.9]} 1-0

[Event "Late-Titled-Tuesday-Blitz-October-24-2023"]
[Site "Chess.com"]
[Date "2023.10.24"]
[Round "9"]
[White "balachess2006"]
[Black "Schwindle"]
[Result "1-0"]
[WhiteElo "2568"]
[BlackElo "2414"]
[TimeControl "180+1"]
[EndTime "15:39:04 PDT"]
[Termination "balachess2006 won by resignation"]

1. Nf3 {[%clk 0:03:00.9]} 1... Nf6 {[%clk 0:02:59.8]} 2. c4 {[%clk 0:03:00.7]}
2... e6 {[%clk 0:03:00]} 3. Nc3 {[%clk 0:03:00.6]} 3... d5 {[%clk 0:02:59]} 4.
e3 {[%clk 0:03:01]} 4... Be7 {[%clk 0:02:58.6]} 5. b3 {[%clk 0:03:00.8]} 5...
O-O {[%clk 0:02:58.1]} 6. Bb2 {[%clk 0:03:01.2]} 6... c6 {[%clk 0:02:55.5]} 7.
d4 {[%clk 0:02:59.6]} 7... Nbd7 {[%clk 0:02:55.3]} 8. Bd3 {[%clk 0:02:59.4]}
8... b6 {[%clk 0:02:49.8]} 9. O-O {[%clk 0:02:59.7]} 9... Bb7 {[%clk 0:02:50]}
10. Qe2 {[%clk 0:02:57.3]} 10... c5 {[%clk 0:02:41.5]} 11. cxd5 {[%clk
0:02:57.2]} 11... Nxd5 {[%clk 0:02:39]} 12. Nxd5 {[%clk 0:02:49.7]} 12... Bxd5
{[%clk 0:02:38.8]} 13. Rfd1 {[%clk 0:02:50.3]} 13... Bd6 {[%clk 0:02:07.9]} 14.
e4 {[%clk 0:02:38.3]} 14... Bb7 {[%clk 0:02:07]} 15. Bb5 {[%clk 0:02:34.5]}
15... Nb8 {[%clk 0:01:15.7]} 16. dxc5 {[%clk 0:02:31.6]} 16... bxc5 {[%clk
0:01:14.9]} 17. e5 {[%clk 0:02:31.3]} 1-0

[Event "Late-Titled-Tuesday-Blitz-October-24-2023"]
[Site "Chess.com"]
[Date "2023.10.24"]
[Round "9"]
[White "nitpicker"]
[Black "serefra99"]
[Result "1-0"]
[WhiteElo "2277"]
[BlackElo "2396"]
[TimeControl "180+1"]
[EndTime "15:39:37 PDT"]
[Termination "nitpicker won by resignation"]

1. d4 {[%clk 0:03:00.9]} 1... e6 {[%clk 0:02:47.4]} 2. c4 {[%clk 0:03:00.5]}
2... d5 {[%clk 0:02:47.2]} 3. Nf3 {[%clk 0:03:00]} 3... g6 {[%clk 0:02:09]} 4.
Bg5 {[%clk 0:02:49.3]} 4... f6 {[%clk 0:02:05.6]} 5. Bc1 {[%clk 0:02:42.6]} 5...
Nh6 {[%clk 0:02:05]} 6. e3 {[%clk 0:02:28]} 6... Nf7 {[%clk 0:01:51.2]} 7. Nc3
{[%clk 0:02:25.6]} 7... Bg7 {[%clk 0:01:50.1]} 8. Qb3 {[%clk 0:02:15.6]} 8...
O-O {[%clk 0:01:49.8]} 9. cxd5 {[%clk 0:02:14.5]} 9... exd5 {[%clk 0:01:50.2]}
10. Qxd5 {[%clk 0:02:10.9]} 10... f5 {[%clk 0:01:49]} 11. Qxd8 {[%clk
0:02:08.3]} 11... Rxd8 {[%clk 0:01:24.2]} 12. Bc4 {[%clk 0:02:08]} 12... Kf8
{[%clk 0:01:20.9]} 13. b3 {[%clk 0:01:59.9]} 13... c5 {[%clk 0:01:20.1]} 14. Ba3
{[%clk 0:01:58.2]} 14... b6 {[%clk 0:01:15.7]} 15. Bd5 {[%clk 0:01:55.5]} 1-0

[Event "Late-Titled-Tuesday-Blitz-October-24-2023"]
[Site "Chess.com"]
[Date "2023.10.24"]
[Round "9"]
[White "jcmesafischer"]
[Black "HajiyevKanan"]
[Result "0-1"]
[WhiteElo "2330"]
[BlackElo "2510"]
[TimeControl "180+1"]
[EndTime "15:39:39 PDT"]
[Termination "HajiyevKanan won by resignation"]

1. Nf3 {[%clk 0:03:00.9]} 1... d5 {[%clk 0:02:59.5]} 2. g3 {[%clk 0:02:56.9]}
2... c6 {[%clk 0:03:00.4]} 3. Bg2 {[%clk 0:02:56.9]} 3... Nf6 {[%clk 0:02:57.5]}
4. d3 {[%clk 0:02:57.2]} 4... g6 {[%clk 0:02:58]} 5. O-O {[%clk 0:02:57]} 5...
Bg7 {[%clk 0:02:58.6]} 6. Nbd2 {[%clk 0:02:57.4]} 6... O-O {[%clk 0:02:59.4]} 7.
e4 {[%clk 0:02:57.8]} 7... a5 {[%clk 0:02:59.9]} 8. a4 {[%clk 0:02:56.7]} 8...
Na6 {[%clk 0:02:59.6]} 9. e5 {[%clk 0:02:56.2]} 9... Nd7 {[%clk 0:02:59.2]} 10.
d4 {[%clk 0:02:56.5]} 10... c5 {[%clk 0:02:58.3]} 11. c3 {[%clk 0:02:49.8]}
11... cxd4 {[%clk 0:02:57.9]} 12. cxd4 {[%clk 0:02:50.7]} 12... Nb4 {[%clk
0:02:57.9]} 13. Nb3 {[%clk 0:02:47.1]} 13... Nb6 {[%clk 0:02:55]} 14. Bd2 {[%clk
0:02:38.9]} 14... Nc4 {[%clk 0:02:53.6]} 15. Bc3 {[%clk 0:02:37.4]} 15... Bf5
{[%clk 0:02:52.4]} 16. Ne1 {[%clk 0:02:35.1]} 16... h5 {[%clk 0:02:49.7]} 17.
Nxa5 {[%clk 0:02:22.3]} 17... Qxa5 {[%clk 0:02:45.5]} 18. Qb3 {[%clk 0:02:21.2]}
18... b5 {[%clk 0:02:28.1]} 19. Bxb4 {[%clk 0:02:11.7]} 19... bxa4 {[%clk
0:02:28.2]} 20. Bxa5 {[%clk 0:02:04.2]} 20... axb3 {[%clk 0:02:26]} 21. Bxd5
{[%clk 0:02:00.4]} 21... Rxa5 {[%clk 0:02:23]} 22. Rxa5 {[%clk 0:01:56.8]} 22...
Nxa5 {[%clk 0:02:23.9]} 23. Ng2 {[%clk 0:01:56.7]} 23... Rd8 {[%clk 0:02:21]}
24. Ne3 {[%clk 0:01:51.6]} 24... e6 {[%clk 0:02:16.7]} 25. Bf3 {[%clk
0:01:47.3]} 25... Rxd4 {[%clk 0:02:13.9]} 26. Ra1 {[%clk 0:01:47.7]} 26... Nc4
{[%clk 0:02:11.9]} 27. Ra4 {[%clk 0:01:45.6]} 27... Bd3 {[%clk 0:02:03.8]} 28.
Bd1 {[%clk 0:01:45.1]} 28... Bxe5 {[%clk 0:02:02]} 29. Bxb3 {[%clk 0:01:44.7]}
29... Nxe3 {[%clk 0:02:00.8]} 30. Ra8+ {[%clk 0:01:44.6]} 30... Kg7 {[%clk
0:01:59.3]} 31. fxe3 {[%clk 0:01:45.2]} 31... Rb4 {[%clk 0:01:58.6]} 0-1

[Event "Late-Titled-Tuesday-Blitz-October-24-2023"]
[Site "Chess.com"]
[Date "2023.10.24"]
[Round "9"]
[White "KVAIDAN"]
[Black "Sanyura"]
[Result "0-1"]
[WhiteElo "2432"]
[BlackElo "2614"]
[TimeControl "180+1"]
[EndTime "15:40:11 PDT"]
[Termination "Sanyura won by checkmate"]

1. f4 {[%clk 0:02:59.6]} 1... c5 {[%clk 0:02:57.3]} 2. Nf3 {[%clk 0:03:00.5]}
2... d5 {[%clk 0:02:55.4]} 3. e3 {[%clk 0:02:58.7]} 3... Nf6 {[%clk 0:02:56.3]}
4. Be2 {[%clk 0:02:49.2]} 4... Bg4 {[%clk 0:02:54.8]} 5. O-O {[%clk 0:02:47]}
5... g6 {[%clk 0:02:54.2]} 6. Ne5 {[%clk 0:02:47.3]} 6... Bxe2 {[%clk
0:02:53.1]} 7. Qxe2 {[%clk 0:02:44]} 7... Nc6 {[%clk 0:02:53.7]} 8. d3 {[%clk
0:02:44.7]} 8... Bg7 {[%clk 0:02:53.5]} 9. Nd2 {[%clk 0:02:45.1]} 9... O-O
{[%clk 0:02:53.8]} 10. Ndf3 {[%clk 0:02:45.6]} 10... Rc8 {[%clk 0:02:52.6]} 11.
Qf2 {[%clk 0:02:44.2]} 11... Nxe5 {[%clk 0:02:51]} 12. fxe5 {[%clk 0:02:44]}
12... Nd7 {[%clk 0:02:43.6]} 13. d4 {[%clk 0:02:43.4]} 13... f5 {[%clk 0:02:30]}
14. Ng5 {[%clk 0:02:39.8]} 14... Rc6 {[%clk 0:02:18.5]} 15. Qf3 {[%clk
0:02:33.4]} 15... e6 {[%clk 0:02:15.5]} 16. Qh3 {[%clk 0:02:32.1]} 16... Qxg5
{[%clk 0:02:14.3]} 17. e4 {[%clk 0:02:22.3]} 17... Qe7 {[%clk 0:02:08.8]} 18.
exd5 {[%clk 0:02:22.3]} 18... exd5 {[%clk 0:02:09.3]} 19. c4 {[%clk 0:02:21.3]}
19... cxd4 {[%clk 0:01:49.1]} 20. cxd5 {[%clk 0:02:21.3]} 20... Rc5 {[%clk
0:01:49.5]} 21. e6 {[%clk 0:02:17.6]} 21... Nf6 {[%clk 0:01:42.5]} 22. Bg5
{[%clk 0:02:14.6]} 22... Rxd5 {[%clk 0:01:42.4]} 23. Qb3 {[%clk 0:02:14.5]}
23... Rd6 {[%clk 0:01:41.9]} 24. Rae1 {[%clk 0:02:13.4]} 24... h6 {[%clk
0:01:40.8]} 25. Bxf6 {[%clk 0:02:13]} 25... Bxf6 {[%clk 0:01:41.7]} 26. Re2
{[%clk 0:02:12.1]} 26... d3 {[%clk 0:01:41.2]} 27. Rd2 {[%clk 0:02:11.8]} 27...
Qxe6 {[%clk 0:01:40.2]} 28. Qxb7 {[%clk 0:02:11.2]} 28... Qe3+ {[%clk
0:01:40.1]} 29. Rff2 {[%clk 0:02:06.7]} 29... Bd4 {[%clk 0:01:22.9]} 30. Qb3+
{[%clk 0:02:02.6]} 30... Kg7 {[%clk 0:01:22.1]} 31. Kh1 {[%clk 0:02:00.7]} 31...
Qe1+ {[%clk 0:01:21.2]} 32. Rf1 {[%clk 0:02:00.1]} 32... Qxf1# {[%clk
0:01:21.3]} 0-1